fUST/lending_fUST_20260513
["ID","MTS","AMOUNT","RATE_DAILY","PERIOD"]
[422156192,1778632242000,-152.0,0.00010775,2]
[422156195,1778632242000,-152.0,0.00010816,2]
[422156189,1778632242000,-185.0,0.00010754,2]
[422156191,1778632242000,-152.0,0.00010775,2]
[422156190,1778632242000,-152.0,0.00010758,2]
[422156222,1778632242000,-1327.6159893,0.00010898,2]
[422156218,1778632242000,-1327.6159893,0.00010898,2]
[422156227,1778632242000,-3016.2401,0.00010958,2]
[422156261,1778632242000,-500.0,0.00010958,2]
[422156260,1778632242000,-1341.58,0.00010958,2]
[422156264,1778632242000,-500.0,0.00010958,2]
[422156266,1778632242000,-500.0,0.00010958,2]
[422156262,1778632242000,-673.99,0.00010958,2]
[422156265,1778632242000,-500.0,0.00010958,2]
[422156269,1778632242000,-500.0,0.00010958,2]
[422156263,1778632242000,-500.0,0.00010958,2]
[422156267,1778632242000,-500.0,0.00010958,2]
[422156270,1778632242000,-548.86,0.00010958,2]
[422156283,1778632242000,-500.0,0.00010958,2]
[422156272,1778632242000,-500.0,0.00010958,2]
[422156280,1778632242000,-1006.34,0.00010958,2]
[422156273,1778632242000,-500.0,0.00010958,2]
[422156278,1778632242000,-500.0,0.00010958,2]
[422156271,1778632242000,-1084.04,0.00010958,2]
[422156223,1778632242000,-2062.55134431,0.000109,2]
[422156275,1778632242000,-500.0,0.00010958,2]
[422156276,1778632242000,-1280.98,0.00010958,2]
[422156277,1778632242000,-500.0,0.00010958,2]
[422156282,1778632242000,-500.0,0.00010958,2]
[422156279,1778632242000,-521.24,0.00010958,2]
[422156281,1778632242000,-735.83,0.00010958,2]
[422156284,1778632242000,-500.0,0.00010958,2]
[422156286,1778632242000,-2699.85,0.00010958,2]
[422156285,1778632242000,-500.0,0.00010958,2]
[422156287,1778632242000,-315.72319221,0.00010958,2]
[422156258,1778632242000,-2544.5,0.00010958,2]
[422156268,1778632242000,-2820.81,0.00010958,2]
[422156274,1778632242000,-654.78,0.00010958,2]
[422156252,1778632242000,-773.62,0.00010958,2]
[422156259,1778632242000,-500.0,0.00010958,2]
[422156226,1778632242000,-720.2504,0.00010958,2]
[422156235,1778632242000,-500.0,0.00010958,2]
[422156234,1778632242000,-500.0,0.00010958,2]
[422156242,1778632242000,-500.0,0.00010958,2]
[422156236,1778632242000,-859.62,0.00010958,2]
[422156231,1778632242000,-502.98,0.00010958,2]
[422156239,1778632242000,-500.0,0.00010958,2]
[422156240,1778632242000,-500.0,0.00010958,2]
[422156238,1778632242000,-1424.33,0.00010958,2]
[422156237,1778632242000,-500.0,0.00010958,2]
[422156233,1778632242000,-500.0,0.00010958,2]
[422156243,1778632242000,-500.0,0.00010958,2]
[422156241,1778632242000,-500.0,0.00010958,2]
[422156256,1778632242000,-551.69,0.00010958,2]
[422156245,1778632242000,-875.83,0.00010958,2]
[422156255,1778632242000,-518.71,0.00010958,2]
[422156246,1778632242000,-488.49158295,0.00010958,2]
[422156247,1778632242000,-500.0,0.00010958,2]
[422156248,1778632242000,-500.0,0.00010958,2]
[422156257,1778632242000,-1232.19,0.00010958,2]
[422156244,1778632242000,-500.0,0.00010958,2]
[422156249,1778632242000,-500.0,0.00010958,2]
[422156250,1778632242000,-500.0,0.00010958,2]
[422156254,1778632242000,-500.0,0.00010958,2]
[422156251,1778632242000,-500.0,0.00010958,2]
[422156253,1778632242000,-719.17,0.00010958,2]
[422156232,1778632242000,-500.0,0.00010958,2]
[422156303,1778632243000,-500.0,0.00010958,2]
[422156302,1778632243000,-500.0,0.00010958,2]
[422156304,1778632243000,-1613.71,0.00010958,2]
[422156301,1778632243000,-184.27680779,0.00010958,2]
[422156305,1778632243000,-500.0,0.00010958,2]
[422156300,1778632243000,-1702.0182915,8.97e-05,2]
[422156306,1778632244000,-1264.28,0.00010958,2]
[422156309,1778632244000,-206.10939288,0.00010958,2]
[422156308,1778632244000,-500.0,0.00010958,2]
[422156307,1778632244000,-500.0,0.00010958,2]
[422156332,1778632247000,-1454.45,0.00010958,2]
[422156347,1778632247000,-810.0,0.00010958,2]
[422156334,1778632247000,-500.0,0.00010958,2]
[422156329,1778632247000,-500.0,0.00010958,2]
[422156335,1778632247000,-1479.07,0.00010958,2]
[422156336,1778632247000,-7419.64,0.00010958,2]
[422156338,1778632247000,-500.0,0.00010958,2]
[422156330,1778632247000,-734.13,0.00010958,2]
[422156314,1778632247000,-314.67060712,0.00010958,2]
[422156348,1778632247000,-500.0,0.00010958,2]
[422156345,1778632247000,-500.0,0.00010958,2]
[422156337,1778632247000,-2873.13,0.00010958,2]
[422156331,1778632247000,-500.0,0.00010958,2]
[422156324,1778632247000,-501.05550561,0.00010958,2]
[422156327,1778632247000,-580.95,0.00010958,2]
[422156325,1778632247000,-500.0,0.00010958,2]
[422156326,1778632247000,-501.06667928,0.00010958,2]
[422156323,1778632247000,-500.60385193,0.00010958,2]
[422156321,1778632247000,-500.0,0.00010958,2]
[422156318,1778632247000,-500.0,0.00010958,2]
[422156320,1778632247000,-500.0,0.00010958,2]
[422156319,1778632247000,-441.78512257,0.00010958,2]
[422156322,1778632247000,-500.0,0.00010958,2]
[422156317,1778632247000,-932.92039661,0.00010958,2]
[422156316,1778632247000,-1850.14960339,0.00010958,2]
[422156315,1778632247000,-1468.71,0.00010958,2]
[422156333,1778632247000,-500.0,0.00010958,2]
[422156340,1778632247000,-7486.5,0.00010958,2]
[422156328,1778632247000,-774.43,0.00010958,2]
[422156341,1778632247000,-2348.21,0.00010958,2]
[422156339,1778632247000,-500.0,0.00010958,2]
[422156372,1778632247000,-1820.8637292,0.00010958,2]
[422156371,1778632247000,-4652.63941566,0.00010958,2]
[422156369,1778632247000,-500.0,0.00010958,2]
[422156367,1778632247000,-500.0,0.00010958,2]
[422156364,1778632247000,-500.0,0.00010958,2]
[422156365,1778632247000,-8001.15,0.00010958,2]
[422156368,1778632247000,-2472.62,0.00010958,2]
[422156370,1778632247000,-1366.99058434,0.00010958,2]
[422156362,1778632247000,-2043.58,0.00010958,2]
[422156366,1778632247000,-1856.51,0.00010958,2]
[422156361,1778632247000,-2613.25,0.00010958,2]
[422156363,1778632247000,-500.0,0.00010958,2]
[422156356,1778632247000,-500.0,0.00010958,2]
[422156344,1778632247000,-1350.06,0.00010958,2]
[422156355,1778632247000,-2926.86,0.00010958,2]
[422156359,1778632247000,-501.39773098,0.00010958,2]
[422156342,1778632247000,-500.0,0.00010958,2]
[422156343,1778632247000,-2256.66,0.00010958,2]
[422156360,1778632247000,-1899.73,0.00010958,2]
[422156350,1778632247000,-929.84,0.00010958,2]
[422156349,1778632247000,-717.87,0.00010958,2]
[422156346,1778632247000,-642.27,0.00010958,2]
[422156353,1778632247000,-500.0,0.00010958,2]
[422156354,1778632247000,-500.0,0.00010958,2]
[422156352,1778632247000,-2941.51,0.00010958,2]
[422156358,1778632247000,-2400.67,0.00010958,2]
[422156357,1778632247000,-824.14,0.00010958,2]
[422156351,1778632247000,-500.0,0.00010958,2]
[422156375,1778632555000,152.0,0.00014,30]
[422156376,1778632556000,152.0,0.00014,30]
[422156377,1778632557000,152.0,0.00014,30]
[422156378,1778632558000,152.0,0.00014,30]
[422156381,1778632797000,292.82,8.802e-05,30]
[422156384,1778633110000,152.0,0.00013872,30]
[422156385,1778633111000,152.0,0.00013872,30]
[422156386,1778633112000,152.0,0.00013872,30]
[422156387,1778633113000,152.0,0.00013893,30]
[422156388,1778633113000,152.0,0.00013893,30]
[422156389,1778633114000,152.0,0.00013893,30]
[422156390,1778633115000,152.0,0.00013914,30]
[422156391,1778633134000,152.0,0.00013872,30]
[422156392,1778633135000,152.0,0.00013893,30]
[422156394,1778633136000,152.0,0.00013914,30]
[422156393,1778633136000,152.0,0.00013893,30]
[422156435,1778633431000,-300.0,0.00010198,2]
[422156433,1778633431000,-300.0,0.00010198,2]
[422156436,1778633431000,-300.0,0.00010198,2]
[422156429,1778633431000,-383.44372105,9.577e-05,2]
[422156431,1778633431000,-600.0,0.00010198,2]
[422156438,1778633431000,-174.59157712,0.00010198,2]
[422156427,1778633431000,-5000.0,9.481e-05,2]
[422156566,1778633434000,152.0,0.00013801,30]
[422156567,1778633435000,152.0,0.00013801,30]
[422156570,1778633436000,152.0,0.00013822,30]
[422156569,1778633436000,152.0,0.00013822,30]
[422156589,1778633438000,-500.0,0.00010582,2]
[422156587,1778633438000,-162.87648604,0.00010582,2]
[422156586,1778633438000,-4137.14787328,0.000105,2]
[422156585,1778633438000,-4137.14787328,0.000104,2]
[422156578,1778633438000,-300.0,0.00010198,2]
[422156580,1778633438000,-300.0,0.00010198,2]
[422156584,1778633438000,-4137.14787328,0.000103,2]
[422156577,1778633438000,-300.0,0.00010198,2]
[422156581,1778633438000,-160.0,0.00010293,2]
[422156583,1778633438000,-161.62975969,0.00010293,2]
[422156574,1778633438000,-125.40842288,0.00010198,2]
[422156576,1778633438000,-300.0,0.00010198,2]
[422156575,1778633438000,-300.0,0.00010198,2]
[422156582,1778633438000,-160.0,0.00010293,2]
[422156588,1778633438000,-500.0,0.00010582,2]
[422156579,1778633438000,-300.0,0.00010198,2]
[422156594,1778633438000,-500.0,0.00010582,2]
[422156604,1778633438000,-152.0,0.00010753,2]
[422156606,1778633438000,-64407.9634631,0.00010756,2]
[422156605,1778633438000,-32667.26101313,0.00010756,2]
[422156602,1778633438000,-4137.14787328,0.000107,2]
[422156603,1778633438000,-160.0,0.000107,2]
[422156601,1778633438000,-160.0,0.000106,2]
[422156600,1778633438000,-160.0,0.000106,2]
[422156598,1778633438000,-4137.14787328,0.000106,2]
[422156596,1778633438000,-500.0,0.00010582,2]
[422156590,1778633438000,-500.0,0.00010582,2]
[422156593,1778633438000,-500.0,0.00010582,2]
[422156591,1778633438000,-500.0,0.00010582,2]
[422156595,1778633438000,-500.0,0.00010582,2]
[422156592,1778633438000,-500.0,0.00010582,2]
[422156597,1778633438000,-450.98578677,0.00010582,2]
[422156607,1778633438000,-13205.97799983,0.00010756,2]
[422156638,1778633450000,-5000.0,0.00010648,2]
[422156639,1778633450000,-34926.38918905,0.00010756,2]
[422156644,1778633596000,3000.0,0.00014,30]
[422156645,1778633607000,152.0,0.00013801,30]
[422156646,1778633607000,152.0,0.00013843,30]
[422156652,1778634133000,152.0,0.00013813,30]
[422156653,1778634134000,152.0,0.00013813,30]
[422156654,1778634134000,152.0,0.00013834,30]
[422156655,1778634135000,152.0,0.00013834,30]
[422156656,1778634155000,152.0,0.00013834,30]
[422156676,1778634425000,152.0,0.00013827,30]
[422156872,1778634638000,-500.0,0.00010398,2]
[422156878,1778634638000,-500.0,0.00010398,2]
[422156876,1778634638000,-500.0,0.00010398,2]
[422156887,1778634638000,-500.0,0.00010398,2]
[422156881,1778634638000,-616.13853829,0.00010398,2]
[422156883,1778634638000,-583.16802273,0.00010398,2]
[422156885,1778634638000,-221.9001347,0.00010398,2]
[422156886,1778634638000,-500.0,0.00010398,2]
[422156890,1778634638000,-500.0,0.00010398,2]
[422156892,1778634638000,-500.0,0.00010398,2]
[422156889,1778634638000,-500.0,0.00010398,2]
[422156891,1778634638000,-500.0,0.00010398,2]
[422156874,1778634638000,-500.0,0.00010398,2]
[422156888,1778634638000,-500.0,0.00010398,2]
[422156873,1778634638000,-500.0,0.00010398,2]
[422156857,1778634638000,-2710.75559043,7.6e-05,2]
[422156869,1778634638000,-248.51220462,0.00010398,2]
[422156870,1778634638000,-500.0,0.00010398,2]
[422156868,1778634638000,-500.0,0.00010398,2]
[422156865,1778634638000,-2068.57393664,0.000103,2]
[422156867,1778634638000,-500.0,0.00010398,2]
[422156866,1778634638000,-500.0,0.00010398,2]
[422156864,1778634638000,-3106.82576827,0.0001028,2]
[422156863,1778634638000,-1418.41699638,0.0001008,2]
[422156862,1778634638000,-5497.72452023,0.0001,2]
[422156860,1778634638000,-370.87468524,0.0001,2]
[422156861,1778634638000,-618.07140816,0.0001,2]
[422156859,1778634638000,-201.04,0.0001,2]
[422156858,1778634638000,-400.61157381,8.8e-05,2]
[422156893,1778634638000,-500.0,0.00010398,2]
[422156871,1778634638000,-500.0,0.00010398,2]
[422156894,1778634638000,-500.0,0.00010398,2]
[422156903,1778634638000,-500.0,0.00010398,2]
[422156898,1778634638000,-500.0,0.00010398,2]
[422156915,1778634638000,-621.06724334,0.00010398,2]
[422156916,1778634638000,-1792.76810326,0.00010398,2]
[422156917,1778634638000,-1792.76810326,0.00010398,2]
[422156918,1778634638000,-1792.76810326,0.00010398,2]
[422156919,1778634638000,-1792.76810326,0.00010398,2]
[422156921,1778634638000,-1792.76810326,0.00010398,2]
[422156913,1778634638000,-500.0,0.00010398,2]
[422156920,1778634638000,-1792.76810326,0.00010398,2]
[422156924,1778634638000,-1792.76810326,0.00010398,2]
[422156923,1778634638000,-1792.76810326,0.00010398,2]
[422156926,1778634638000,-1792.76810326,0.00010398,2]
[422156927,1778634638000,-1792.76810326,0.00010398,2]
[422156928,1778634638000,-1792.76810326,0.00010398,2]
[422156895,1778634638000,-500.0,0.00010398,2]
[422156922,1778634638000,-1792.76810326,0.00010398,2]
[422156914,1778634638000,-500.0,0.00010398,2]
[422156925,1778634638000,-1792.76810326,0.00010398,2]
[422156910,1778634638000,-500.0,0.00010398,2]
[422156912,1778634638000,-500.0,0.00010398,2]
[422156897,1778634638000,-500.0,0.00010398,2]
[422156900,1778634638000,-500.0,0.00010398,2]
[422156902,1778634638000,-500.0,0.00010398,2]
[422156901,1778634638000,-500.0,0.00010398,2]
[422156905,1778634638000,-269.05343738,0.00010398,2]
[422156899,1778634638000,-500.0,0.00010398,2]
[422156896,1778634638000,-500.0,0.00010398,2]
[422156907,1778634638000,-500.0,0.00010398,2]
[422156906,1778634638000,-500.0,0.00010398,2]
[422156909,1778634638000,-500.0,0.00010398,2]
[422156911,1778634638000,-500.0,0.00010398,2]
[422156904,1778634638000,-500.0,0.00010398,2]
[422156908,1778634638000,-500.0,0.00010398,2]
[422156972,1778634639000,-4466.12130381,0.00010739,2]
[422156969,1778634639000,-2068.57393664,0.000107,2]
[422156971,1778634639000,-621.78829552,0.00010714,2]
[422156970,1778634639000,-151.0,0.000107,2]
[422156966,1778634639000,-882.2380642,0.00010681,2]
[422156962,1778634639000,-160.0,0.00010675,2]
[422156967,1778634639000,-200.5086509,0.00010681,2]
[422156963,1778634639000,-161.62975969,0.00010675,2]
[422156965,1778634639000,-13465.0742958,0.00010681,2]
[422156974,1778634639000,-152.0,0.00010759,2]
[422156961,1778634639000,-599.60298507,0.00010659,2]
[422156968,1778634639000,-49621.2391305,0.00010681,2]
[422156964,1778634639000,-4008.81252069,0.0001068,2]
[422156982,1778634639000,-443.0,0.0001077,2]
[422156976,1778634639000,-152.0,0.00010759,2]
[422156977,1778634639000,-152.0,0.00010764,2]
[422156978,1778634639000,-644.79446246,0.00010769,2]
[422156980,1778634639000,-647.0,0.0001077,2]
[422156981,1778634639000,-848.152,0.0001077,2]
[422156979,1778634639000,-2219.0,0.0001077,2]
[422156985,1778634639000,-160.0,0.0001078,2]
[422156984,1778634639000,-4217.12755792,0.0001078,2]
[422156983,1778634639000,-185.0,0.0001077,2]
[422156987,1778634639000,-152.0,0.00010789,2]
[422156988,1778634639000,-160.0,0.000108,2]
[422156960,1778634639000,-578.20924308,0.00010604,2]
[422156989,1778634639000,-161.65420637,0.000108,2]
[422156973,1778634639000,-152.0,0.00010759,2]
[422156956,1778634639000,-524.22268346,0.00010515,2]
[422156943,1778634639000,-1882.40650842,0.00010398,2]
[422156959,1778634639000,-2068.57393664,0.000106,2]
[422156986,1778634639000,-204.10037561,0.0001078,2]
[422156929,1778634639000,-1792.76810326,0.00010398,2]
[422156931,1778634639000,-500.0,0.00010398,2]
[422156932,1778634639000,-500.0,0.00010398,2]
[422156930,1778634639000,-500.0,0.00010398,2]
[422156935,1778634639000,-200.0,0.00010398,2]
[422156934,1778634639000,-500.0,0.00010398,2]
[422156933,1778634639000,-500.0,0.00010398,2]
[422156937,1778634639000,-1882.40650842,0.00010398,2]
[422156936,1778634639000,-1882.40650842,0.00010398,2]
[422156938,1778634639000,-1882.40650842,0.00010398,2]
[422156939,1778634639000,-1882.40650842,0.00010398,2]
[422156941,1778634639000,-1882.40650842,0.00010398,2]
[422156957,1778634639000,-557.5788265,0.00010549,2]
[422156940,1778634639000,-1882.40650842,0.00010398,2]
[422156946,1778634639000,-2108.2952894,0.00010398,2]
[422156945,1778634639000,-1882.40650842,0.00010398,2]
[422156948,1778634639000,-2068.57393664,0.000104,2]
[422156944,1778634639000,-1882.40650842,0.00010398,2]
[422156947,1778634639000,-432470.63027735,0.00010399,2]
[422156950,1778634639000,-537.6845,0.00010494,2]
[422156949,1778634639000,-3557.76451178,0.0001048,2]
[422156952,1778634639000,-2068.57393664,0.000105,2]
[422156951,1778634639000,-304.69188077,0.00010499,2]
[422156953,1778634639000,-151.0,0.000105,2]
[422156955,1778634639000,-500.0,0.00010515,2]
[422156954,1778634639000,-152.90622002,0.00010515,2]
[422156958,1778634639000,-3783.2338836,0.0001058,2]
[422156942,1778634639000,-1882.40650842,0.00010398,2]
[422156991,1778634639000,-472.72165709,0.000108,2]
[422157033,1778634639000,-500.0,0.00010958,2]
[422156992,1778634639000,-152.0,0.00010806,2]
[422157026,1778634639000,-679.38,0.00010958,2]
[422157025,1778634639000,-1000.95,0.00010958,2]
[422157029,1778634639000,-500.0,0.00010958,2]
[422157027,1778634639000,-500.0,0.00010958,2]
[422157028,1778634639000,-500.0,0.00010958,2]
[422157031,1778634639000,-2575.31,0.00010958,2]
[422157032,1778634639000,-500.0,0.00010958,2]
[422157034,1778634639000,-500.0,0.00010958,2]
[422157036,1778634639000,-500.0,0.00010958,2]
[422157035,1778634639000,-500.0,0.00010958,2]
[422157037,1778634639000,-837.71,0.00010958,2]
[422157038,1778634639000,-500.0,0.00010958,2]
[422157040,1778634639000,-151.0,0.00010958,2]
[422157024,1778634639000,-500.0,0.00010958,2]
[422157039,1778634639000,-580.43,0.00010958,2]
[422157041,1778634639000,-635.59,0.00010958,2]
[422157043,1778634639000,-1389.84,0.00010958,2]
[422157045,1778634639000,-500.0,0.00010958,2]
[422157044,1778634639000,-1124.29,0.00010958,2]
[422157046,1778634639000,-500.0,0.00010958,2]
[422157047,1778634639000,-630.15,0.00010958,2]
[422157048,1778634639000,-2891.71,0.00010958,2]
[422157051,1778634639000,-500.0,0.00010958,2]
[422157050,1778634639000,-500.0,0.00010958,2]
[422157049,1778634639000,-500.0,0.00010958,2]
[422156990,1778634639000,-2068.57393664,0.000108,2]
[422157053,1778634639000,-500.0,0.00010958,2]
[422157054,1778634639000,-1331.77,0.00010958,2]
[422157042,1778634639000,-729.24,0.00010958,2]
[422157021,1778634639000,-500.0,0.00010958,2]
[422157052,1778634639000,-689.97,0.00010958,2]
[422157022,1778634639000,-873.13,0.00010958,2]
[422157023,1778634639000,-500.0,0.00010958,2]
[422156993,1778634639000,-152.0,0.00010821,2]
[422156999,1778634639000,-693.3919763,0.00010879,2]
[422156995,1778634639000,-152.0,0.00010856,2]
[422156997,1778634639000,-152.0,0.00010877,2]
[422156996,1778634639000,-152.0,0.00010877,2]
[422156994,1778634639000,-668.65185757,0.00010824,2]
[422157001,1778634639000,-152.0,0.00010897,2]
[422157000,1778634639000,-4234.28827703,0.0001088,2]
[422157004,1778634639000,-400.087,0.000109,2]
[422157002,1778634639000,-160.0,0.000109,2]
[422157003,1778634639000,-2068.57393664,0.000109,2]
[422157006,1778634639000,-500.0,0.00010957,2]
[422157007,1778634639000,-573.12,0.00010957,2]
[422156998,1778634639000,-152.0,0.00010877,2]
[422157008,1778634639000,-1608.2317,0.00010958,2]
[422157005,1778634639000,-719.04747942,0.00010934,2]
[422157020,1778634639000,-500.0,0.00010958,2]
[422157018,1778634639000,-500.0,0.00010958,2]
[422157016,1778634639000,-500.0,0.00010958,2]
[422157015,1778634639000,-500.0,0.00010958,2]
[422157014,1778634639000,-151.0,0.00010958,2]
[422157019,1778634639000,-500.0,0.00010958,2]
[422157012,1778634639000,-500.0,0.00010958,2]
[422157013,1778634639000,-500.0,0.00010958,2]
[422157009,1778634639000,-13443.1642096,0.00010958,2]
[422157011,1778634639000,-500.0,0.00010958,2]
[422157010,1778634639000,-2134.7934,0.00010958,2]
[422157017,1778634639000,-859.58,0.00010958,2]
[422157113,1778634640000,-500.0,0.00010958,2]
[422157111,1778634640000,-7682.98,0.00010958,2]
[422157109,1778634640000,-500.0,0.00010958,2]
[422157108,1778634640000,-500.0,0.00010958,2]
[422157095,1778634640000,-1512.66,0.00010958,2]
[422157097,1778634640000,-1000.0,0.00010958,2]
[422157099,1778634640000,-1000.0,0.00010958,2]
[422157093,1778634640000,-500.0,0.00010958,2]
[422157102,1778634640000,-667.42656494,0.00010958,2]
[422157106,1778634640000,-500.0,0.00010958,2]
[422157104,1778634640000,-500.0,0.00010958,2]
[422157130,1778634640000,-500.0,0.00010958,2]
[422157118,1778634640000,-7628.13,0.00010958,2]
[422157116,1778634640000,-785.5,0.00010958,2]
[422157128,1778634640000,-1442.1,0.00010958,2]
[422157120,1778634640000,-500.0,0.00010958,2]
[422157124,1778634640000,-500.0,0.00010958,2]
[422157122,1778634640000,-3040.62,0.00010958,2]
[422157126,1778634640000,-1397.98,0.00010958,2]
[422157132,1778634640000,-2433.03,0.00010958,2]
[422157134,1778634640000,-500.0,0.00010958,2]
[422157136,1778634640000,-628.17,0.00010958,2]
[422157138,1778634640000,-2318.08,0.00010958,2]
[422157101,1778634640000,-528.71,0.00010958,2]
[422157140,1778634640000,-500.0,0.00010958,2]
[422157114,1778634640000,-1163.87,0.00010958,2]
[422157091,1778634640000,-1305.85,0.00010958,2]
[422157067,1778634640000,-2805.66,0.00010958,2]
[422157086,1778634640000,-500.0,0.00010958,2]
[422157142,1778634640000,-3026.59,0.00010958,2]
[422157056,1778634640000,-500.0,0.00010958,2]
[422157055,1778634640000,-500.0,0.00010958,2]
[422157058,1778634640000,-500.0,0.00010958,2]
[422157063,1778634640000,-500.0,0.00010958,2]
[422157062,1778634640000,-1089.41,0.00010958,2]
[422157057,1778634640000,-927.96,0.00010958,2]
[422157059,1778634640000,-500.0,0.00010958,2]
[422157060,1778634640000,-1474.41,0.00010958,2]
[422157061,1778634640000,-500.0,0.00010958,2]
[422157064,1778634640000,-827.07,0.00010958,2]
[422157068,1778634640000,-500.0,0.00010958,2]
[422157089,1778634640000,-500.0,0.00010958,2]
[422157065,1778634640000,-1676.22,0.00010958,2]
[422157069,1778634640000,-568.56,0.00010958,2]
[422157070,1778634640000,-500.0,0.00010958,2]
[422157072,1778634640000,-2937.56,0.00010958,2]
[422157073,1778634640000,-500.0,0.00010958,2]
[422157075,1778634640000,-500.0,0.00010958,2]
[422157077,1778634640000,-500.0,0.00010958,2]
[422157071,1778634640000,-500.0,0.00010958,2]
[422157080,1778634640000,-500.0,0.00010958,2]
[422157078,1778634640000,-943.51,0.00010958,2]
[422157082,1778634640000,-846.32,0.00010958,2]
[422157084,1778634640000,-689.21,0.00010958,2]
[422157087,1778634640000,-500.0,0.00010958,2]
[422157066,1778634640000,-500.0,0.00010958,2]
[422157152,1778634640000,-500.0,0.00010958,2]
[422157172,1778634640000,-6630.14,0.00010958,2]
[422157146,1778634640000,-2988.93,0.00010958,2]
[422157193,1778634640000,-500.0,0.00010958,2]
[422157197,1778634640000,-3936.7,0.00010958,2]
[422157198,1778634640000,-1693.5,0.00010958,2]
[422157196,1778634640000,-500.0,0.00010958,2]
[422157203,1778634640000,-1000.0,0.00010958,2]
[422157202,1778634640000,-1636.18,0.00010958,2]
[422157199,1778634640000,-500.0,0.00010958,2]
[422157200,1778634640000,-42799.59,0.00010958,2]
[422157201,1778634640000,-500.0,0.00010958,2]
[422157206,1778634640000,-1000.0,0.00010958,2]
[422157204,1778634640000,-1000.0,0.00010958,2]
[422157205,1778634640000,-1700.34,0.00010958,2]
[422157194,1778634640000,-500.0,0.00010958,2]
[422157208,1778634640000,-1014.78382094,0.00010958,2]
[422157209,1778634640000,-1538.84,0.00010958,2]
[422157212,1778634640000,-500.0,0.00010958,2]
[422157213,1778634640000,-3408.49,0.00010958,2]
[422157210,1778634640000,-8076.29,0.00010958,2]
[422157214,1778634640000,-259.41589593,0.00010958,2]
[422157216,1778634640000,-2076.93,0.00010958,2]
[422157211,1778634640000,-695.77,0.00010958,2]
[422157215,1778634640000,-500.0,0.00010958,2]
[422157217,1778634640000,-915.3,0.00010958,2]
[422157218,1778634640000,-500.0,0.00010958,2]
[422157219,1778634640000,-150.71012556,0.00010958,2]
[422157151,1778634640000,-500.0,0.00010958,2]
[422157207,1778634640000,-1000.0,0.00010958,2]
[422157195,1778634640000,-500.0,0.00010958,2]
[422157179,1778634640000,-500.0,0.00010958,2]
[422157192,1778634640000,-2069.97,0.00010958,2]
[422157147,1778634640000,-2467.7,0.00010958,2]
[422157144,1778634640000,-765.87,0.00010958,2]
[422157149,1778634640000,-995.26,0.00010958,2]
[422157154,1778634640000,-1820.57,0.00010958,2]
[422157155,1778634640000,-5911.67,0.00010958,2]
[422157157,1778634640000,-500.0,0.00010958,2]
[422157156,1778634640000,-2683.6,0.00010958,2]
[422157158,1778634640000,-500.0,0.00010958,2]
[422157160,1778634640000,-8178.11,0.00010958,2]
[422157162,1778634640000,-2544.59,0.00010958,2]
[422157170,1778634640000,-500.0,0.00010958,2]
[422157168,1778634640000,-6186.93,0.00010958,2]
[422157164,1778634640000,-500.0,0.00010958,2]
[422157153,1778634640000,-2088.34,0.00010958,2]